bitfinex/quotes_BTCUSD_20251016
["timestamp","ask_amount","ask_price","bid_price","bid_amount"]
[1760645989763,0.01489663,108360.0,108350.0,0.18473708]
[1760645989992,0.03942447,108360.0,108350.0,0.18473708]
[1760645990815,0.5245534,108370.0,108350.0,0.18473708]
[1760645991019,0.18456995,108360.0,108350.0,0.18473708]
[1760645992489,0.5245534,108370.0,108350.0,0.18473708]
[1760645992702,0.34,108370.0,108360.0,0.18456995]
[1760645992921,0.52455292,108370.0,108360.0,0.18456995]
[1760645993126,0.18456995,108360.0,108350.0,0.18473708]
[1760645993557,0.19376268,108380.0,108360.0,0.18456995]
[1760645993765,0.18455292,108370.0,108360.0,0.18456995]
[1760645993966,0.18455292,108370.0,108350.0,0.19396642]
[1760645994179,0.18455292,108370.0,108350.0,0.18473171]
[1760645994380,0.18455292,108370.0,108360.0,0.18456995]
[1760645994587,0.34,108380.0,108370.0,0.18455292]
[1760645994790,0.52453589,108380.0,108370.0,0.18455292]
[1760645995398,0.34,108380.0,108370.0,0.18455292]
[1760645995609,5.0,108380.0,108370.0,0.18455292]
[1760645995808,5.0,108390.0,108380.0,0.18453589]
[1760645998153,0.18451886,108390.0,108380.0,0.18453589]
[1760645998359,0.18451886,108390.0,108370.0,0.18455292]
[1760645998564,0.18453589,108380.0,108370.0,0.18455292]
[1760645999307,0.18453867,108380.0,108370.0,0.18455292]
[1760645999519,0.1937448,108390.0,108370.0,0.18455292]
[1760645999738,0.18453589,108380.0,108370.0,0.18455292]
[1760646000745,4.84296,108380.0,108370.0,0.18455292]
[1760646000969,5.02749589,108380.0,108370.0,0.18455292]
[1760646001130,0.18453589,108380.0,108370.0,0.18455292]
[1760646001339,0.18453589,108380.0,108360.0,0.18456915]
[1760646001550,5.02749589,108380.0,108370.0,0.18455292]
[1760646001755,0.18453589,108380.0,108370.0,0.18455292]
[1760646002347,0.35987698,108390.0,108380.0,0.18453589]
[1760646002779,0.21210579,108410.0,108390.0,0.18451886]
[1760646002994,5.36746248,108400.0,108390.0,0.18451886]
[1760646003211,5.38734528,108400.0,108390.0,0.18451886]
[1760646003420,4.84296,108390.0,108380.0,0.18453589]
[1760646003666,4.8628428,108390.0,108380.0,0.18453589]
[1760646003903,0.0198828,108390.0,108380.0,0.18453589]
[1760646004124,0.18501946,108390.0,108380.0,0.18453589]
[1760646004362,0.0005006,108390.0,108380.0,0.18453589]
[1760646009577,0.18501946,108390.0,108380.0,0.18453589]
[1760646009789,0.18501946,108390.0,108370.0,0.19378056]
[1760646010003,0.0005006,108390.0,108380.0,0.20298947]
[1760646010221,0.0005006,108390.0,108380.0,0.18453589]
[1760646014335,5.027463,108400.0,108390.0,0.18451886]
[1760646014537,0.184503,108400.0,108390.0,0.18451886]
[1760646014957,0.53480289,108410.0,108400.0,0.18450184]
[1760646015865,0.3503084,108410.0,108400.0,0.18450184]
[1760646016082,0.05801378,108420.0,108410.0,0.18448482]
[1760646016293,0.03813314,108420.0,108410.0,0.18448482]
[1760646016511,0.23681207,108440.0,108420.0,0.18445633]
[1760646016725,4.84296,108430.0,108420.0,0.18445633]
[1760646016952,4.86284064,108430.0,108420.0,0.18445633]
[1760646017171,0.22673525,108440.0,108430.0,0.18445079]
[1760646017383,5.06969525,108440.0,108420.0,0.18445633]
[1760646017597,4.84296,108430.0,108420.0,0.18445633]
[1760646018457,0.04229856,108440.0,108430.0,0.18445079]
[1760646019081,0.22673234,108440.0,108430.0,0.18445079]
[1760646019288,0.22673234,108440.0,108420.0,0.18445633]
[1760646019501,0.04229856,108440.0,108430.0,0.18445079]
[1760646019719,0.22673234,108440.0,108430.0,0.18445079]
[1760646022408,0.04229856,108440.0,108430.0,0.18445079]
[1760646022990,0.04229856,108440.0,108430.0,0.2213415]
[1760646023650,0.04229856,108440.0,108430.0,0.18445079]
[1760646023651,0.22673234,108440.0,108430.0,0.18445079]
[1760646023863,0.22673234,108440.0,108420.0,0.18446781]
[1760646024048,0.18445079,108430.0,108420.0,0.18446781]
[1760646024718,0.18445079,108430.0,108410.0,0.19370906]
[1760646025129,0.18445079,108430.0,108420.0,0.18446781]
[1760646025337,0.58658976,108440.0,108430.0,0.18445079]
[1760646026365,0.40215592,108440.0,108430.0,0.18445079]
[1760646026707,0.06215592,108440.0,108430.0,0.18445079]
[1760646026915,0.22673234,108440.0,108430.0,0.18445079]
[1760646028595,0.04229856,108440.0,108430.0,0.18445079]
[1760646028882,0.22673234,108440.0,108420.0,0.18446781]
[1760646029081,0.22673234,108440.0,108430.0,0.18445079]
[1760646029229,0.18445079,108430.0,108420.0,0.18446781]
[1760646030181,0.27138415,108440.0,108430.0,0.18445079]
[1760646030344,0.22673234,108440.0,108430.0,0.18445079]
[1760646030768,0.22673234,108440.0,108420.0,0.18446781]
[1760646030972,0.25152679,108440.0,108430.0,0.18445079]
[1760646031274,0.22673234,108440.0,108430.0,0.18445079]
[1760646031755,0.04229856,108440.0,108430.0,0.18445079]
[1760646031898,0.22673234,108440.0,108430.0,0.18445079]
[1760646032459,0.18445079,108430.0,108420.0,0.18446781]
[1760646033213,0.28060583,108440.0,108420.0,0.18446781]
[1760646033430,0.28060583,108440.0,108430.0,0.18445079]
[1760646033617,0.26074847,108440.0,108430.0,0.18445079]
[1760646034357,0.28060583,108440.0,108430.0,0.18445079]
[1760646034560,0.26074847,108440.0,108430.0,0.18445079]
[1760646034974,0.28060583,108440.0,108430.0,0.18445079]
[1760646036373,0.27138415,108440.0,108430.0,0.18445079]
[1760646037187,0.05294712,108440.0,108430.0,0.18445079]
[1760646038658,0.09056015,108440.0,108430.0,0.18445079]
[1760646039797,0.43056015,108440.0,108430.0,0.18445079]
[1760646041110,0.43056015,108440.0,108420.0,0.18446781]
[1760646042038,0.43056015,108440.0,108430.0,0.18445079]
[1760646043187,0.43056015,108440.0,108420.0,0.18360052]
[1760646044157,0.18446781,108420.0,108400.0,0.19372693]
[1760646044350,0.18446781,108420.0,108410.0,0.18448482]
[1760646045177,0.18446781,108420.0,108400.0,0.19372693]
[1760646045395,0.18448482,108410.0,108400.0,0.18450184]
[1760646045877,0.18446781,108420.0,108410.0,0.18448482]
[1760646047236,0.21755964,108420.0,108410.0,0.18448482]
[1760646047564,0.21755964,108420.0,108400.0,0.18450184]
[1760646047985,0.21755964,108420.0,108410.0,0.18448482]
[1760646048847,0.24530421,108420.0,108400.0,0.18450184]
[1760646049056,0.24530421,108420.0,108410.0,0.18448482]
[1760646049259,0.26522499,108420.0,108410.0,0.18448482]
[1760646049708,0.18448482,108410.0,108400.0,0.18450184]
[1760646049922,0.2044056,108410.0,108400.0,0.18450184]
[1760646050141,0.01992078,108410.0,108400.0,0.18450184]
[1760646050780,0.35992078,108420.0,108410.0,0.18448482]
[1760646051599,0.36474665,108420.0,108410.0,0.18448482]
[1760646052106,0.02474665,108420.0,108410.0,0.18448482]
[1760646052334,0.00482587,108420.0,108410.0,0.18448482]
[1760646054758,0.18929368,108420.0,108410.0,0.18448482]
[1760646054974,0.00482587,108420.0,108410.0,0.18448482]
[1760646055408,0.00082587,108420.0,108410.0,0.18448482]
[1760646055610,0.54437216,108430.0,108420.0,0.18446781]
[1760646056212,0.54437216,108430.0,108410.0,0.18448482]
[1760646056643,0.54437216,108430.0,108420.0,0.18446781]
[1760646056819,0.54437216,108430.0,108410.0,0.18448482]
[1760646058622,0.18446781,108420.0,108410.0,0.18448482]
[1760646059429,0.18446781,108420.0,108400.0,0.19372693]
[1760646059627,0.18446781,108420.0,108410.0,0.18448482]
[1760646060044,5.02742781,108420.0,108410.0,0.18448482]
[1760646060247,0.20438859,108420.0,108410.0,0.18448482]
[1760646060477,0.18446781,108420.0,108410.0,0.18448482]
[1760646061944,0.58133603,108430.0,108410.0,0.18448482]
[1760646062146,0.58133603,108430.0,108420.0,0.18446781]
[1760646062396,0.04766212,108430.0,108420.0,0.18446781]
[1760646062582,0.02774134,108430.0,108420.0,0.18446781]
[1760646063123,0.58196759,108440.0,108430.0,0.18445079]
[1760646063330,0.58196759,108440.0,108420.0,0.18446781]
[1760646063552,5.02741079,108430.0,108420.0,0.18446361]
[1760646063758,0.57126849,108440.0,108420.0,0.18446361]
[1760646063971,0.18445079,108430.0,108410.0,0.18447464]
[1760646064178,0.18445079,108430.0,108420.0,0.18546781]
[1760646064389,0.18446781,108420.0,108410.0,0.18447464]
[1760646064824,0.18446781,108420.0,108400.0,0.19372693]
[1760646065036,0.18446781,108420.0,108410.0,0.18448482]
[1760646065244,0.18446781,108420.0,108390.0,0.1937448]
[1760646065451,0.18450184,108400.0,108390.0,0.1937448]
[1760646065667,0.20440092,108410.0,108390.0,0.1937448]
[1760646065876,0.52448482,108410.0,108400.0,0.18450184]
[1760646066080,0.54440092,108410.0,108400.0,0.18450184]
[1760646066681,0.3599161,108410.0,108400.0,0.18465197]
[1760646066827,0.54440092,108410.0,108400.0,0.18465197]
[1760646067030,0.3599161,108410.0,108400.0,0.18465197]
[1760646067210,0.0199161,108410.0,108400.0,0.18465197]
[1760646067412,0.18448482,108410.0,108400.0,0.18465197]
[1760646067613,0.58135187,108420.0,108400.0,0.18465197]
[1760646068333,0.18448482,108410.0,108400.0,0.00015013]
[1760646068492,0.18448482,108410.0,108400.0,0.01759845]
[1760646068698,0.18448482,108410.0,108400.0,0.20210029]
[1760646068904,0.18448482,108410.0,108400.0,0.18450184]
[1760646069106,0.18448482,108410.0,108400.0,0.20206814]
[1760646069500,0.18448482,108410.0,108390.0,0.1937448]
[1760646069874,0.18450184,108400.0,108370.0,0.68710178]
[1760646070110,0.18451886,108390.0,108380.0,0.27422382]
[1760646070312,0.18450184,108400.0,108380.0,0.27422382]
[1760646070519,0.21362516,108410.0,108400.0,0.18450184]
[1760646070649,5.03666906,108410.0,108400.0,0.18450184]
[1760646070858,5.05658516,108410.0,108400.0,0.18450184]
[1760646071889,0.21362516,108410.0,108400.0,0.18450184]
[1760646072100,0.18450184,108400.0,108390.0,0.18451886]
[1760646072474,0.18450184,108400.0,108380.0,0.28345061]
[1760646072817,0.18450184,108400.0,108390.0,0.18451886]
[1760646073424,4.84296,108400.0,108390.0,0.18451886]
[1760646073646,5.02746184,108400.0,108390.0,0.18551886]
[1760646073844,0.18450184,108400.0,108390.0,0.18551886]
[1760646074056,0.22232293,108400.0,108390.0,0.001]
[1760646074312,0.18450184,108400.0,108390.0,0.001]
[1760646074501,5.36746184,108400.0,108390.0,0.001]
[1760646074741,5.38737542,108400.0,108390.0,0.001]
[1760646074957,5.41512676,108400.0,108390.0,0.001]
[1760646075370,0.18453316,108390.0,108370.0,0.19428116]
[1760646075572,0.00030036,108380.0,108370.0,0.19428116]
[1760646075832,0.54444674,108390.0,108380.0,0.18453589]
[1760646076028,0.34,108390.0,108380.0,0.18453589]
[1760646076234,0.52451886,108390.0,108370.0,0.19428116]
[1760646076415,0.00030036,108380.0,108370.0,0.19428116]
[1760646077211,0.52451886,108390.0,108370.0,0.19428116]
[1760646077565,0.18483625,108380.0,108370.0,0.0005006]
[1760646077813,0.18453589,108380.0,108370.0,0.18505352]
[1760646078503,0.18453589,108380.0,108370.0,0.0005006]
[1760646078840,0.18453589,108380.0,108370.0,0.18505352]
[1760646079660,0.18453589,108380.0,108370.0,0.0005006]
[1760646079863,0.22192843,108380.0,108370.0,0.0005006]
[1760646080510,0.56192843,108380.0,108370.0,0.0005006]
[1760646080713,5.42477927,108380.0,108370.0,0.0005006]
[1760646084926,5.4525375,108380.0,108370.0,0.0005006]
[1760646087504,5.4525375,108380.0,108370.0,0.18505352]
[1760646087705,0.6095775,108380.0,108370.0,0.0005006]
[1760646088410,0.6095775,108380.0,108370.0,0.18505352]
[1760646088544,0.42504161,108380.0,108370.0,0.18505352]
[1760646088749,0.6095775,108380.0,108370.0,0.18505352]
[1760646088963,0.58968666,108380.0,108370.0,0.18505352]
[1760646089161,0.60951822,108380.0,108370.0,0.18505352]
[1760646089360,0.58175999,108380.0,108370.0,0.18505352]
[1760646090647,0.3972241,108380.0,108370.0,0.18505352]
[1760646090919,0.58175999,108380.0,108370.0,0.18505352]
[1760646091308,0.0572241,108380.0,108370.0,0.18505352]
[1760646091624,0.03739254,108380.0,108370.0,0.18505352]
[1760646091833,0.0376929,108380.0,108370.0,0.18505352]
[1760646092065,0.18483625,108380.0,108370.0,0.18505352]
[1760646092294,0.18453589,108380.0,108370.0,0.18505352]
[1760646093020,0.22116448,108380.0,108370.0,0.18505352]
[1760646093943,0.22116448,108380.0,108370.0,0.0005006]
[1760646094173,5.40412448,108380.0,108370.0,0.0005006]
[1760646094396,5.42395604,108380.0,108370.0,0.0005006]
[1760646094617,5.45704787,108380.0,108370.0,0.0005006]
[1760646095058,5.42395604,108380.0,108370.0,0.0005006]
[1760646096359,5.45704787,108380.0,108370.0,0.0005006]
[1760646097248,5.48188914,108380.0,108370.0,0.0005006]
[1760646098305,5.50964454,108380.0,108370.0,0.0005006]
[1760646099227,5.48480327,108380.0,108370.0,0.0005006]
[1760646099445,5.53446122,108380.0,108370.0,0.0005006]
[1760646099668,5.48480327,108380.0,108370.0,0.0005006]
[1760646099893,5.50966538,108380.0,108370.0,0.0005006]
[1760646100814,5.48480327,108380.0,108370.0,0.0005006]
[1760646101259,5.53446122,108380.0,108370.0,0.0005006]
[1760646103778,5.55174935,108380.0,108370.0,0.0005006]
[1760646104415,5.51865752,108380.0,108370.0,0.0005006]
[1760646104618,5.55186204,108380.0,108370.0,0.0005006]
[1760646105388,5.51865752,108380.0,108370.0,0.0005006]
[1760646105567,5.55186537,108380.0,108370.0,0.0005006]
[1760646106489,5.51865752,108380.0,108370.0,0.0005006]
[1760646107441,0.69162861,108380.0,108370.0,0.18505352]
[1760646107631,0.69162861,108380.0,108370.0,0.0005006]
[1760646107833,0.69162861,108380.0,108370.0,0.18505352]
[1760646107834,0.45743477,108380.0,108370.0,0.18505352]
[1760646107975,0.10912853,108380.0,108370.0,0.18505352]
[1760646108383,0.44576221,108390.0,108380.0,0.18453589]
[1760646108585,0.48358004,108390.0,108370.0,0.18505352]
[1760646108784,0.42265883,108390.0,108380.0,0.18453589]
[1760646109047,0.08265883,108390.0,108380.0,0.18453589]
[1760646109251,0.45342474,108400.0,108390.0,0.18451886]
[1760646109462,0.79342474,108400.0,108390.0,0.18451886]
[1760646109668,0.80623196,108400.0,108390.0,0.18451886]
[1760646109909,0.83597081,108400.0,108380.0,0.18453589]
[1760646110117,0.18451886,108390.0,108370.0,0.19428116]
[1760646110334,0.18453589,108380.0,108370.0,0.0005006]
[1760646110757,0.18453589,108380.0,108370.0,0.18505352]
[1760646110966,0.18453589,108380.0,108370.0,0.0005006]
[1760646111183,0.52453589,108380.0,108370.0,0.0005006]
[1760646111390,0.54944887,108380.0,108370.0,0.0005006]
[1760646112241,0.54944887,108380.0,108370.0,0.18505352]
[1760646112468,0.52453589,108380.0,108370.0,0.18505352]
[1760646112669,0.52453589,108380.0,108370.0,0.0005006]
[1760646113027,0.54944887,108380.0,108370.0,0.0005006]
[1760646113235,0.52453589,108380.0,108370.0,0.0005006]
[1760646113440,0.52453589,108380.0,108370.0,0.18505352]
[1760646115006,0.34,108380.0,108370.0,0.18505352]
[1760646115227,0.20943682,108390.0,108380.0,0.18453589]
[1760646115450,0.53294776,108400.0,108390.0,0.18451886]
[1760646115665,0.84518598,108400.0,108390.0,0.18451886]
[1760646115911,0.62654607,108400.0,108390.0,0.18451886]
[1760646116128,0.00482587,108400.0,108390.0,0.18451886]
[1760646116346,0.00482587,108400.0,108390.0,0.26533948]
[1760646116773,0.18962807,108400.0,108370.0,0.23124334]
[1760646117009,0.1845194,108390.0,108380.0,0.18453589]
[1760646117919,0.18451886,108390.0,108380.0,0.18453589]
[1760646118616,0.18451886,108390.0,108370.0,0.28397128]
[1760646118839,0.18451886,108390.0,108380.0,0.18453589]
[1760646119276,0.60127753,108400.0,108390.0,0.0032]
[1760646119970,0.60127753,108400.0,108390.0,0.18771886]
[1760646120219,0.60127753,108400.0,108390.0,0.0032]
[1760646120447,0.62117967,108400.0,108390.0,0.0032]
[1760646120676,5.47244591,108400.0,108390.0,0.0032]
[1760646120921,5.56713417,108400.0,108390.0,0.0032]
[1760646121920,5.56713449,108400.0,108390.0,0.0032]
[1760646122386,5.50019736,108400.0,108390.0,0.0032]
[1760646122582,5.56713432,108400.0,108390.0,0.0032]
[1760646122941,5.5339151,108400.0,108390.0,0.0032]
[1760646124573,5.48425715,108400.0,108390.0,0.0032]
[1760646127440,5.53402349,108400.0,108390.0,0.0032]
[1760646130184,5.48425715,108400.0,108390.0,0.0032]
[1760646130812,5.02749589,108380.0,108370.0,0.0005006]
[1760646131039,5.07228225,108380.0,108370.0,0.0005006]
[1760646131643,5.10003973,108380.0,108370.0,0.0005006]
[1760646132699,5.13321869,108380.0,108370.0,0.0005006]
[1760646132907,5.46561458,108380.0,108370.0,0.0005006]
[1760646134361,5.44833447,108380.0,108370.0,0.0005006]
[1760646135183,5.47320776,108380.0,108370.0,0.0005006]
[1760646136823,5.46560549,108380.0,108370.0,0.0005006]
[1760646137376,5.44833447,108380.0,108370.0,0.0005006]
[1760646138893,5.46560183,108380.0,108370.0,0.0005006]
[1760646140815,5.51537027,108380.0,108370.0,0.0005006]
[1760646141235,5.49810291,108380.0,108370.0,0.0005006]
[1760646142316,5.51837274,108380.0,108370.0,1e-08]
[1760646142517,5.51837274,108380.0,108330.0,0.01879673]
[1760646142518,5.36756402,108340.0,108330.0,0.01879673]
[1760646142755,0.1846381,108320.0,108310.0,0.01879673]
[1760646142998,0.20310191,108320.0,108310.0,0.01879673]
[1760646143222,0.20310191,108320.0,108310.0,0.0004]
[1760646143436,0.1846381,108320.0,108310.0,0.0004]
[1760646143853,0.1846381,108320.0,108310.0,0.18505515]
[1760646144062,0.22252754,108320.0,108310.0,0.18505515]
[1760646144309,0.03788944,108320.0,108310.0,0.18505515]
[1760646144537,0.52465588,108340.0,108330.0,0.18462106]
[1760646144750,0.35991553,108340.0,108330.0,0.18462106]
[1760646144977,0.0377892,108340.0,108330.0,0.18462106]
[1760646145228,4.999e-05,108340.0,108330.0,0.20233671]
[1760646146151,4.999e-05,108340.0,108330.0,0.18462106]
[1760646148393,0.18465708,108340.0,108320.0,0.1846381]
[1760646148616,4.999e-05,108340.0,108330.0,0.18462106]
[1760646152464,0.18465401,108340.0,108330.0,0.18462106]
[1760646152670,0.18465401,108340.0,108320.0,0.18463546]
[1760646152871,0.18465401,108340.0,108330.0,0.18462106]
[1760646152994,4.999e-05,108340.0,108330.0,0.18462106]
[1760646157255,0.18465401,108340.0,108330.0,0.18462106]
[1760646157486,0.18465401,108340.0,108320.0,0.18463546]
[1760646157731,4.999e-05,108340.0,108330.0,0.20308316]
[1760646157959,4.999e-05,108340.0,108330.0,0.18462106]
[1760646158862,0.18465401,108340.0,108330.0,0.18462106]
[1760646159086,4.999e-05,108340.0,108330.0,0.22154671]
[1760646159610,0.18465401,108340.0,108330.0,0.18462106]
[1760646160317,4.999e-05,108340.0,108330.0,0.18462106]
[1760646160544,0.00035035,108340.0,108330.0,0.18462106]
[1760646161201,0.18495437,108340.0,108330.0,0.18462106]
[1760646161415,0.18465401,108340.0,108330.0,0.18462106]
[1760646161651,4.999e-05,108340.0,108330.0,0.18462106]
[1760646162296,0.00035035,108340.0,108330.0,0.18462106]
[1760646162724,4.999e-05,108340.0,108330.0,0.18462106]
[1760646165391,0.00035035,108340.0,108330.0,0.18462106]
[1760646165598,0.18495437,108340.0,108330.0,0.18462106]
[1760646165748,4.999e-05,108340.0,108330.0,0.18462106]
[1760646165949,0.00035035,108340.0,108330.0,0.18462106]
[1760646168192,0.18495437,108340.0,108330.0,0.18462106]
[1760646168394,0.18465401,108340.0,108330.0,0.18462106]
[1760646168787,0.22812254,108340.0,108330.0,0.18462106]
[1760646168999,0.18462106,108330.0,108320.0,0.18463546]
[1760646169401,0.18462106,108330.0,108320.0,0.1846381]
[1760646172111,0.18462106,108330.0,108310.0,0.1942879]
[1760646172252,0.1846381,108320.0,108310.0,0.0004]
[1760646172835,0.5246381,108320.0,108310.0,0.0004]
[1760646173039,0.56940941,108320.0,108310.0,0.0004]
[1760646175521,0.56940941,108320.0,108310.0,0.18505515]
[1760646175950,0.54453646,108320.0,108310.0,0.18505515]
[1760646176152,0.35989836,108320.0,108310.0,0.18505515]
[1760646176363,0.01989836,108320.0,108310.0,0.18505515]
[1760646176577,0.597165,108330.0,108320.0,0.1846381]
[1760646176788,0.35989836,108330.0,108320.0,0.1846381]
[1760646176994,0.01989836,108330.0,108320.0,0.1846381]
[1760646177141,0.23729189,108340.0,108320.0,0.1846381]
[1760646177346,0.20952696,108340.0,108320.0,0.1846381]
[1760646177510,0.18465401,108340.0,108320.0,0.1846381]
[1760646177712,0.20954703,108340.0,108320.0,0.1846381]
[1760646177951,0.25301556,108340.0,108320.0,0.1846381]
[1760646178156,0.18492142,108330.0,108310.0,0.1942879]
[1760646178364,0.18462106,108330.0,108320.0,0.1846381]
[1760646178618,0.1846381,108320.0,108310.0,0.0004]
[1760646179833,0.20953112,108320.0,108310.0,0.0004]
[1760646180297,5.39249112,108320.0,108310.0,0.0004]
[1760646180507,5.47042236,108320.0,108310.0,0.0004]
[1760646180868,5.42067645,108320.0,108310.0,0.0004]
[1760646181306,5.22775545,108320.0,108310.0,0.0004]
[1760646181463,5.41239355,108320.0,108310.0,0.0004]
[1760646182285,5.44555749,108320.0,108310.0,0.0004]
[1760646184143,5.44553273,108320.0,108310.0,0.0004]
[1760646185223,5.44297273,108320.0,108310.0,0.0004]
[1760646186442,5.07236879,108320.0,108310.0,0.3004]
[1760646188468,5.41236879,108320.0,108310.0,0.3004]
[1760646190023,5.41719466,108320.0,108310.0,0.3004]
[1760646191218,5.44496787,108320.0,108310.0,0.3004]
[1760646195322,5.47813181,108320.0,108310.0,0.3004]
[1760646196427,5.42011159,108320.0,108310.0,0.3004]
[1760646196649,5.4698575,108320.0,108310.0,0.3004]
[1760646196856,5.51332603,108320.0,108310.0,0.3004]
[1760646197058,5.4698575,108320.0,108310.0,0.3004]
[1760646198351,5.50300413,108320.0,108310.0,0.3004]
[1760646198555,5.4698575,108320.0,108310.0,0.3004]
[1760646199414,5.4373841,108320.0,108310.0,0.3004]
[1760646200290,5.50371198,108320.0,108310.0,0.3004]
[1760646201408,5.47056548,108320.0,108310.0,1e-08]
[1760646201616,5.48715617,108320.0,108310.0,1e-08]
[1760646202040,5.48716819,108320.0,108310.0,1e-08]
[1760646202453,5.02761515,108310.0,108300.0,0.0004]
[1760646202687,5.09800699,108310.0,108300.0,0.0004]
[1760646203526,5.125783,108310.0,108300.0,0.0004]
[1760646205575,5.10849847,108310.0,108300.0,0.0004]
[1760646205779,5.1333958,108310.0,108300.0,0.0004]
[1760646206201,5.1002029,108310.0,108300.0,0.0004]
[1760646206655,4.69655901,108310.0,108300.0,0.0004]
[1760646206802,4.69655901,108310.0,108300.0,0.1850722]
[1760646206803,0.01991441,108310.0,108300.0,0.1850722]
[1760646207029,0.00482587,108320.0,108310.0,0.18465515]
[1760646207230,0.04768448,108330.0,108320.0,0.1846381]
[1760646207420,0.20453547,108330.0,108310.0,0.18465515]
[1760646207614,0.24352182,108340.0,108320.0,0.20310191]
[1760646207822,0.0496876,108340.0,108320.0,0.1846381]
[1760646208032,0.02479027,108340.0,108330.0,0.20308316]
[1760646208242,4.999e-05,108340.0,108330.0,0.71424302]
[1760646208446,0.18462317,108330.0,108310.0,0.26653038]
[1760646208737,0.18462317,108330.0,108310.0,0.27433122]
[1760646208934,0.20460016,108340.0,108320.0,0.1846381]
[1760646209058,4.999e-05,108340.0,108330.0,0.19522868]
[1760646209264,0.18462106,108330.0,108320.0,0.18463027]
[1760646209472,0.18462106,108330.0,108310.0,0.28356397]
[1760646209677,0.21379889,108340.0,108320.0,0.1846381]
[1760646209877,0.19388448,108340.0,108320.0,0.1846381]
[1760646210075,0.19388448,108340.0,108310.0,0.28356397]
[1760646210076,0.18462106,108330.0,108310.0,0.28356397]
[1760646210525,0.1846381,108320.0,108310.0,0.08969012]
[1760646210746,0.18465515,108310.0,108300.0,0.0004]
[1760646211520,4.80862715,108310.0,108300.0,0.0004]
[1760646211758,4.82854156,108310.0,108300.0,0.0004]
[1760646211973,4.85343889,108310.0,108300.0,0.0004]
[1760646212164,5.19343889,108310.0,108300.0,0.0004]
[1760646213890,0.56946689,108310.0,108300.0,0.0004]
[1760646214422,5.19343889,108310.0,108300.0,0.0004]
[1760646214840,0.56946689,108310.0,108300.0,0.0004]
[1760646215281,0.54456956,108310.0,108300.0,0.0004]
[1760646215902,0.56946689,108310.0,108300.0,0.0004]
[1760646216079,5.19343889,108310.0,108300.0,0.0004]
[1760646216978,5.20173446,108310.0,108300.0,0.0004]
[1760646217184,5.2266152,108310.0,108300.0,0.0004]
[1760646218257,0.6026432,108310.0,108300.0,0.0004]
[1760646218464,0.5694503,108310.0,108300.0,0.0004]
[1760646218884,0.5694503,108310.0,108300.0,0.1850722]
[1760646219108,0.2294503,108310.0,108300.0,0.1850722]
[1760646219318,0.20953589,108310.0,108300.0,0.0004]
[1760646220455,0.29039934,108320.0,108310.0,0.18465515]
[1760646220674,0.56943485,108320.0,108300.0,0.1850722]
[1760646220915,0.56942103,108320.0,108300.0,0.1850722]
[1760646221326,0.56942103,108320.0,108310.0,0.18465515]
[1760646221563,0.56942103,108320.0,108300.0,0.1850722]
[1760646222175,0.18465515,108310.0,108300.0,0.1850722]
[1760646222765,0.18465515,108310.0,108300.0,0.0004]
[1760646223165,0.18465515,108310.0,108300.0,0.1850722]
[1760646225134,0.56942019,108320.0,108310.0,0.18465515]
[1760646225335,0.04478049,108320.0,108310.0,0.18465515]
[1760646225546,0.6487818,108330.0,108310.0,0.18465515]
[1760646225748,0.6155889,108330.0,108310.0,0.18465515]
[1760646225966,0.1846381,108320.0,108310.0,0.18465515]
[1760646226386,0.18465515,108310.0,108300.0,0.19430581]
[1760646226594,0.18465515,108310.0,108300.0,0.1850722]
[1760646227224,0.20454054,108320.0,108300.0,0.1850722]
[1760646227445,0.1846381,108320.0,108300.0,0.1850722]
[1760646227914,0.18465515,108310.0,108300.0,0.1850722]
[1760646228100,0.20454054,108320.0,108310.0,0.18465515]
[1760646228337,0.42173679,108330.0,108320.0,0.1846381]
[1760646228550,0.5814798,108330.0,108320.0,0.1846381]
[1760646228733,0.1846381,108320.0,108310.0,0.18465515]
[1760646230411,0.5814798,108330.0,108310.0,0.18465515]
[1760646230790,0.1846381,108320.0,108310.0,0.18465515]
[1760646230991,0.1846381,108320.0,108300.0,0.19430581]
[1760646231197,0.1846381,108320.0,108310.0,0.18465515]
[1760646231401,0.18465515,108310.0,108300.0,0.0004]
[1760646236536,0.18465515,108310.0,108300.0,0.1850722]
[1760646236744,0.18465515,108310.0,108300.0,0.0004]
[1760646236951,0.18465515,108310.0,108300.0,0.1850722]
[1760646237965,0.25719074,108320.0,108300.0,0.1850722]
[1760646238280,0.18495551,108310.0,108300.0,0.1850722]
[1760646238459,0.18465515,108310.0,108300.0,0.0004]
[1760646239611,0.18465515,108310.0,108300.0,0.1850722]
[1760646239820,0.18465515,108310.0,108300.0,0.0004]
[1760646240169,5.14862715,108310.0,108300.0,0.0004]
[1760646240375,5.19340764,108310.0,108300.0,0.0004]
[1760646241241,0.56943564,108310.0,108300.0,0.0004]
[1760646242877,0.54455759,108310.0,108300.0,0.0004]
[1760646243124,0.56943564,108310.0,108300.0,0.0004]
[1760646244234,5.19340764,108310.0,108300.0,0.0004]
[1760646244476,5.22660054,108310.0,108300.0,0.0004]
[1760646246276,5.19340764,108310.0,108300.0,0.0004]
[1760646246986,0.56943564,108310.0,108300.0,0.0004]
[1760646247214,5.19340764,108310.0,108300.0,0.0004]
[1760646248371,5.22660054,108310.0,108300.0,0.0004]
[1760646248567,5.19340764,108310.0,108300.0,0.0004]
[1760646248987,5.22660054,108310.0,108300.0,0.0004]
[1760646249161,5.20172249,108310.0,108300.0,0.0004]
[1760646250141,5.22460895,108310.0,108300.0,0.0004]
[1760646250542,5.25238666,108310.0,108300.0,0.0004]
[1760646250977,5.21919376,108310.0,108300.0,0.0004]
[1760646258170,5.19141605,108310.0,108300.0,0.0004]
[1760646259557,4.97680216,108310.0,108300.0,0.0004]
[1760646259973,5.16145731,108310.0,108300.0,0.0004]
[1760646261164,5.18638377,108310.0,108300.0,0.0004]
[1760646262810,5.16145731,108310.0,108300.0,0.1850722]
[1760646263144,5.16145731,108310.0,108300.0,0.0004]
[1760646263338,5.20492584,108310.0,108300.0,0.0004]
[1760646263584,5.18638377,108310.0,108300.0,0.0004]
[1760646268696,5.20371643,108310.0,108300.0,0.0004]
[1760646269319,5.2369093,108310.0,108300.0,0.0004]
[1760646269687,5.14866126,108290.0,108280.0,0.0004]
[1760646269889,5.20184974,108290.0,108280.0,0.0004]
[1760646270237,5.2517788,108290.0,108280.0,0.0004]
[1760646270441,5.20184974,108290.0,108280.0,0.0004]
[1760646270837,5.2517788,108290.0,108280.0,0.0005501]
[1760646271037,5.26910369,108290.0,108280.0,0.0005501]
[1760646271309,5.2517788,108290.0,108280.0,0.0005501]
[1760646271508,5.20184974,108290.0,108280.0,0.0005501]
[1760646273717,5.22676791,108290.0,108280.0,0.0005501]
[1760646273926,4.95808984,108290.0,108280.0,0.0005501]
[1760646274155,5.1427791,108290.0,108280.0,0.0005501]
[1760646274571,5.16007818,108290.0,108280.0,0.0005501]
[1760646275104,5.16844605,108290.0,108280.0,0.0005501]
[1760646275656,5.19622942,108290.0,108280.0,0.0005501]
[1760646276442,5.22112455,108290.0,108280.0,0.0005501]